[Event "Czech Championship 2022"]
[Site "Usti nad Labem"]
[Date "2022.05.21"]
[Round "8.21"]
[White "Bartos, Jan"]
[Black "Delgerdalai, Bayarjavkhlan"]
[Result "1-0"]
[ECO "E35"]
[WhiteElo "2125"]
[BlackElo "2119"]
[Annotator "TA"]
[PlyCount "87"]
[EventDate "2022.05.12"]
[EventType "swiss"]
[EventCountry "CZE"]
[SourceTitle "playchess.com"]
[Source "ChessBase"]
[SourceQuality "1"]
[TimeControl "40/5400+30:1800+30"]

{[%evp 19,87,11,3,0,12,0,6,0,0,0,0,0,0,-6,-6,-13,-9,-9,-9,-13,0,-13,23,-13,-13,-13,-8,-13,0,-16,-16,-18,-13,-18,-20,-23,0,0,54,51,72,58,111,111,111,113,198,179,386,374,322,243,612,599,996,575,506,469,811,810,29985,353,346,331,324,291,280,167,12815,12229]} 1. d4 {[%emt 0:00:04]} Nf6 {[%emt 0:00:14]} 2. c4 {[%emt 0:00:04]} e6 {[%emt 0:00:12]} 3. Nc3 {[%emt 0:00:05]} Bb4 {[%emt 0:00:29]} 4. Qc2 {[%emt 0:00:05]} d5 {[%emt 0:00:34]} 5. cxd5 {[%emt 0:00:07]} exd5 {[%emt 0:00:20]} 6. Bg5 {[%emt 0:00:15]} h6 {[%emt 0:00:50]} 7. Bxf6 {[%emt 0:00:50]} Qxf6 {[%emt 0:00:28]} 8. e3 {[%emt 0:00:16]} O-O {[%emt 0:06:22]} 9. a3 {[%emt 0:03:16]} Bxc3+ {[%emt 0:02:15]} 10. Qxc3 {[%emt 0:03:02]} c6 {[%emt 0:02:16]} 11. Ne2 {[%emt 0:01:05] E35: Nimzo-Indian: Classical: 4...d5 5 cxd5 exd5.} Bf5 {[%emt 0:01:08] is currently scoring better than 11...Re8.} 12. Ng3 {[%emt 0:00:31]} Bg6 {[%emt 0:03:55] [#]} 13. Bd3 $146 {[%emt 0:02:01] The position is equal.} ({Predecessor:} 13. Be2 Nd7 14. O-O Nb6 15. a4 Qd6 16. a5 Nc8 17. a6 b6 18. Rfc1 Ne7 19. Bd3 Bxd3 20. Qxd3 {½-½ (84) Enchev,I (2490)-Deac,B (2609) Skopje 2019}) 13... Nd7 {[%emt 0:00:48][%cal Bb8d7,Bd7f6,Bf6e4][%mdl 32]} 14. O-O {[%emt 0:00:34]} h5 {[%emt 0:06:13][%cal Bh6h5,Bh5h4][%mdl 32]} 15. Bxg6 {[%emt 0:01:11]} Qxg6 {[%emt 0:03:06]} 16. Qb3 {[%emt 0:06:41]} Rab8 {[%emt 0:02:09]} 17. Rac1 {[%emt 0:02:58]} h4 {[%emt 0:07:34]} 18. Ne2 {[%emt 0:01:13]} Nf6 {[%emt 0:03:00]} (18... h3 19. Nf4 Qd6 20. Nxh3 $16 (20. gxh3 g5 $14)) 19. Qc2 {[%emt 0:06:09]} Qg5 {[%emt 0:03:34]} 20. Nf4 {[%emt 0:05:44]} g6 {[%emt 0:06:07]} 21. Qe2 {[%emt 0:03:24]} Ne4 {[%emt 0:04:33]} 22. h3 {[%emt 0:05:18]} Qh6 {[%emt 0:05:42]} (22... a6 {seems wilder.} 23. Nd3 Rbe8 24. Qc2 Re7) 23. Nd3 {[%emt 0:02:38]} f5 {[%emt 0:02:30][%cal Bf7f5,Bf5f4][%mdl 32]} 24. Nc5 {[%emt 0:08:18]} Nxc5 {[%emt 0:03:07]} 25. Rxc5 {[%emt 0:00:47]} Rbe8 {[%emt 0:06:11]} 26. Re1 {[%emt 0:09:52]} f4 {[%emt 0:07:54]} 27. Rc3 {[%emt 0:02:15]} Rf7 {[%emt 0:06:23]} 28. b4 {[%emt 0:01:29]} Ref8 {[%emt 0:05:33]} (28... Qg5 $11) 29. e4 $14 {[%emt 0:05:39]} dxe4 {[%emt 0:04:23]} 30. Qxe4 {[%emt 0:00:22]} Qh5 {[%emt 0:05:33] [#]} (30... Rf5 $14) 31. Rc5 $1 $16 {[%emt 0:01:34]} Rf5 {[%emt 0:01:35]} 32. Qe6+ {[%emt 0:02:24]} Kh8 {[%emt 0:00:36]} (32... Kg7 $16) 33. Qe7 $18 {[%emt 0:09:20]} Kg8 $2 {[%emt 0:00:39]} (33... f3 {keeps fighting.} 34. Re4 R8f7 35. Qd8+ (35. Qxh4 Qxh4 36. Rxh4+ Kg7 $16) (35. Rxf5 Qxf5 36. Qd8+ Rf8 $16) 35... Rf8 36. Qxf8+ (36. Qxh4 Qxh4 37. Rxh4+ Kg7 $16) 36... Rxf8 37. Rxh5+ gxh5 38. Rxh4 fxg2 39. Rxh5+ Kg7) 34. Qxb7 {[%emt 0:05:57]} f3 {[%emt 0:00:39] [#] ( -> ...Qg5)} 35. Rxf5 {[%emt 0:00:30]} (35. Qxc6 Qg5 36. g4 hxg3 37. Qe6+ Kh8 38. Rxf5 gxf2+ 39. Kxf2 Qg2+ 40. Ke3 Rxf5 41. Qe8+ Kg7 42. Qe7+ Rf7 43. Qe5+ Kh7 $15) 35... gxf5 {[%emt 0:00:29]} (35... Qxf5 36. Re7 (36. Qxc6 Qg5 $18) 36... Qf6) 36. Qxc6 {[%emt 0:00:47]} fxg2 {[%emt 0:00:12][%mdl 4096] Endgame KQR-KQR} 37. Qe6+ {[%emt 0:04:18]} Kh7 {[%emt 0:00:46]} 38. Qd7+ {[%emt 0:04:43]} Kh8 {[%emt 0:00:24]} (38... Rf7 $142 39. Re7 Rxe7 40. Qxe7+ Kg8 41. Kxg2 Qg6+ 42. Kf3 Qa6 43. Qg5+ Kf7 44. Qxf5+ Ke7 45. Qc5+ Kd7) 39. d5 {[%emt 0:01:29] And now d6 would win.} Qf3 {[%emt 0:00:42]} 40. Re8 $2 {[%emt 0:01:04]} (40. Qe7 {mates} Kg8 41. Qg5+ Kh8 42. Qh6+ (42. Re7 Qd1+ 43. Kxg2 Rg8 $11) 42... Kg8 43. Qg6+ Kh8 44. Re7 Qd1+ 45. Kxg2) 40... Rxe8 {[%emt 0:00:23]} 41. Qxe8+ {[%emt 0:30:06]} Kg7 {[%emt 0:00:59]} 42. Qe7+ {[%emt 0:00:00]} Kg6 {[%emt 0:00:19]} 43. Qe6+ {[%emt 0:00:00]} (43. Qxa7 {is a self mate.} Qxh3 44. Qa6+ Kg5 45. f4+ Kxf4 46. Qc4+ Kg5 47. Qc1+ f4 48. Qe1 Qh1+ 49. Kf2 Qxe1+ 50. Kxe1 g1=Q+ 51. Kd2 Qd4+ 52. Kc2 Qxd5 53. a4 f3 54. Kc3 f2 55. Kc2 f1=Q 56. Kb2 Qf2+ 57. Kc3 Qfd2#) (43. Qxh4 $142 {Strongly threatening Qg3+.} Qxd5 44. Qg3+ Kh5 45. Qe3) 43... Kh5 $2 {[%emt 0:01:53]} (43... Kg7) 44. Qe8+ {[%emt 0:00:00] Weighted Error Value: White=0.53/Black=0.63} 1-0

[Event "Czech Championship 2022"]
[Site "Usti nad Labem"]
[Date "2022.05.21"]
[Round "8.22"]
[White "Ret, Adam Josef"]
[Black "Paseka, Matyas"]
[Result "0-1"]
[ECO "D02"]
[WhiteElo "2093"]
[BlackElo "2076"]
[Annotator "TA"]
[PlyCount "108"]
[EventDate "2022.05.12"]
[EventType "swiss"]
[EventCountry "CZE"]
[SourceTitle "playchess.com"]
[Source "ChessBase"]
[SourceQuality "1"]
[TimeControl "40/5400+30:1800+30"]

{[%evp 9,108,36,33,22,28,25,28,17,25,25,35,7,2,14,14,0,15,15,11,-14,54,0,27,26,32,28,32,28,56,35,57,50,50,54,49,36,37,36,50,37,60,15,29,6,6,6,35,32,50,35,61,11,25,0,0,0,11,0,98,98,91,-29,0,0,0,-48,134,129,121,-4,-7,-89,-84,-194,-206,-189,-166,-219,-196,-212,-166,-269,-229,-221,-214,-708,-683,-650,-580,-29987,-29988,-29988,-29989,-29989,-29990,-29991,-29992,-29992,-29993,-29993,-29994]} 1. d4 {[%emt 0:02:46]} Nf6 {[%emt 0:00:07]} 2. Nf3 {[%emt 0:00:26]} g6 {[%emt 0:00:14]} 3. Nbd2 {[%emt 0:00:05]} d5 {[%emt 0:00:14]} 4. e3 {[%emt 0:00:06]} Bg7 {[%emt 0:00:11]} 5. b4 {[%emt 0:00:13]} O-O {[%emt 0:00:57]} 6. Be2 {[%emt 0:02:01] D02: 1 d4 d5 2 Nf3 sidelines, including 2...Nf6 3 g3 and 2...Nf6 3 Bf4.} Nbd7 {[%emt 0:04:11]} 7. c4 {[%emt 0:02:43]} c6 {[%emt 0:00:35]} 8. O-O {[%emt 0:03:04] White has an edge.} Ne4 {[%emt 0:03:24]} 9. Bb2 {[%emt 0:02:49] Prevents Nc3.} Ndf6 {[%emt 0:06:07]} 10. Qb3 {[%emt 0:02:17]} Bg4 {[%emt 0:05:09] [#] And now ...Nxd2 would win.} 11. Bd3 $146 {[%emt 0:05:04]} ({Predecessor:} 11. Rfe1 Nxd2 12. Nxd2 Bxe2 13. Rxe2 Qd7 14. Rc1 a6 15. a4 Rac8 16. Ba3 b5 17. axb5 axb5 18. cxb5 cxb5 {0-1 (38) Khomeriki,N (2347)-Gromova,I (2241) St Petersburg 2018}) 11... a5 {[%emt 0:06:22]} 12. a3 {[%emt 0:01:56]} a4 {[%emt 0:01:13]} 13. Qc2 {[%emt 0:01:01][%cal Rd2e4]} Bf5 {[%emt 0:00:36]} 14. Rac1 {[%emt 0:06:03]} Qd6 {[%emt 0:05:39]} (14... b5 $11) 15. Rfd1 {[%emt 0:08:31]} (15. Nh4 $14) 15... Bh6 {[%emt 0:08:13][%cal Oe4f2]} 16. Ne5 {[%emt 0:12:14]} Nxd2 {[%emt 0:07:31]} 17. Qxd2 {[%emt 0:02:34]} Ne4 {[%emt 0:00:16]} 18. Qe2 {[%emt 0:01:28]} f6 {[%emt 0:01:10]} 19. Nf3 {[%emt 0:01:09]} Bg4 {[%emt 0:02:40]} 20. h3 {[%emt 0:01:11]} Bxf3 {[%emt 0:02:31]} 21. Qxf3 {[%emt 0:00:52]} f5 {[%emt 0:00:09] aiming for ...f4.} 22. g3 {[%emt 0:01:19] Against f4} e6 {[%emt 0:01:59]} 23. Rc2 {[%emt 0:02:53]} Rf7 {[%emt 0:02:43][%cal Bf8f7,Bf7g7,Bg7g5,Bg5h5,Bh5h2][%mdl 32]} 24. h4 {[%emt 0:04:14]} Raf8 {[%emt 0:02:22][%cal Ob7b5]} 25. Bc1 {[%emt 0:02:16]} Rg7 {[%emt 0:02:04]} 26. Kf1 {[%emt 0:06:10][%cal Bg1f1,Bf1e2,Be2e1,Be1d1][%mdl 32]} g5 {[%emt 0:04:57]} 27. hxg5 {[%emt 0:00:07]} Rxg5 {[%emt 0:00:18]} 28. Ke2 {[%emt 0:00:06]} Bg7 {[%emt 0:08:17]} 29. Bb2 {[%emt 0:06:46]} Rf6 {[%emt 0:07:05]} 30. Qf4 {[%emt 0:04:20]} (30. Rh1 $14) 30... Qf8 {[%emt 0:00:40]} 31. b5 {[%emt 0:04:02]} Rh5 {[%emt 0:04:54]} 32. Rf1 {[%emt 0:05:58]} Rh2 {[%emt 0:03:42]} 33. Ke1 {[%emt 0:02:27]} Bh6 {[%emt 0:05:57]} (33... Qd8 $11) 34. Qc7 $16 {[%emt 0:00:53][%csl LRb7,LRc6]} Rf7 {[%emt 0:00:50]} 35. Qe5 {[%emt 0:00:21]} ({White should play} 35. Qa5 $16) 35... Bg7 $36 {[%emt 0:02:30][%mdl 2048] Black has good play.} 36. Qf4 {[%emt 0:00:55]} ({Wrong is} 36. Qxe6 $2 Ng5 37. cxd5 Nxe6 $19) 36... Qd8 {[%emt 0:00:56]} 37. cxd5 {[%emt 0:01:41]} (37. c5 $1 $11) 37... Qa5+ $2 {[%emt 0:00:39]} (37... cxd5 $15 {keeps the upper hand.} 38. Kd1 Bf8) 38. Kd1 $16 {[%emt 0:01:02]} cxd5 {[%emt 0:00:10]} 39. Bxe4 {[%emt 0:01:04]} (39. g4 $16 Rg2 40. Qb8+ Bf8 41. Qc8) 39... fxe4 $11 {[%emt 0:01:35] Dancing on a razor blade.} 40. Rc8+ {[%emt 0:01:06]} (40. Qb8+ $1 $11 {remains equal.} Bf8 41. Rc5 (41. Qe8 Re7 $17)) 40... Rf8 $17 {[%emt 0:00:31]} 41. Rxf8+ {[%emt 0:31:38]} (41. Qd6 $17 Qxb5 42. Qxe6+ Kh8 43. Rxf8+ Bxf8 44. Qf6+ Kg8 45. Qe6+ Kh8 46. Qe5+ Kg8 47. Qe6+ Kg7 48. Qe5+ Kg8 49. Qe6+) 41... Bxf8 $19 {[%emt 0:30:05]} 42. Qg4+ {[%emt 0:01:00] [#]} Kf7 $1 {[%emt 0:00:08]} 43. Qe2 {[%emt 0:00:35]} (43. Qf4+ $142 Ke7 44. Bc1 Qxb5 45. Qc7+ Ke8 46. Ke1) 43... Bd6 {[%emt 0:00:00]} 44. Rg1 {[%emt 0:00:00]} Ke8 {[%emt 0:00:00]} 45. Qf1 {[%emt 0:00:00] [#]} (45. Kc2 $142) 45... Bxa3 $1 {[%emt 0:00:00][%mdl 512]} 46. Bxa3 {[%emt 0:00:00] Threatens to win with Kc2.} Qc3 {[%emt 0:00:00]} 47. Bc1 {[%emt 0:00:00]} (47. b6 Qxa3 48. Qb5+ Ke7 49. Rf1) 47... Qb3+ {[%emt 0:00:00]} 48. Ke1 {[%emt 0:04:00]} Qc2 {[%emt 0:00:00]} 49. Bd2 {[%emt 0:00:36] [#]} a3 $1 {[%emt 0:00:00] Black mates.} 50. b6 {[%emt 0:00:51]} Qb1+ {[%emt 0:00:00]} 51. Ke2 {[%emt 0:00:33]} Qd3+ {[%emt 0:00:00]} 52. Ke1 {[%emt 0:00:32]} a2 {[%emt 0:00:00]} 53. Qxd3 {[%emt 0:00:30]} a1=Q+ {[%emt 0:00:00]} 54. Ke2 {[%emt 0:00:29]} exd3+ {[%emt 0:00:00] Weighted Error Value: White=0.47/Black=0.21 (precise)} 0-1

[Event "Czech Championship 2022"]
[Site "Usti nad Labem"]
[Date "2022.05.21"]
[Round "8.24"]
[White "Jirasko, Miroslav"]
[Black "Horak, Martin"]
[Result "1-0"]
[ECO "A28"]
[WhiteElo "2091"]
[BlackElo "2343"]
[Annotator "TA"]
[PlyCount "85"]
[EventDate "2022.05.12"]
[EventType "swiss"]
[EventCountry "CZE"]
[SourceTitle "playchess.com"]
[Source "ChessBase"]
[SourceQuality "1"]
[TimeControl "40/5400+30:1800+30"]

{[%evp 12,85,8,0,0,-22,-10,-121,-31,-33,-40,-33,-7,-8,4,-20,-31,-31,-17,-21,-10,-22,-14,-32,-16,-20,-6,-20,-14,-33,-15,-18,-28,-103,-59,-135,-29,-26,-14,-33,-6,-43,-40,-117,415,412,398,256,447,467,455,458,442,435,462,467,450,449,429,418,487,0,138,60,463,73,418,399,458,455,433,425,892,785,834,631]} 1. c4 {[%emt 0:00:03]} e5 {[%emt 0:01:13]} 2. Nc3 {[%emt 0:00:08]} Nf6 {[%emt 0:00:22]} 3. Nf3 {[%emt 0:00:08]} Nc6 {[%emt 0:00:06]} 4. e3 {[%emt 0:00:04]} Bb4 {[%emt 0:00:12]} 5. Qc2 {[%emt 0:01:14]} Bxc3 {[%emt 0:00:05]} 6. Qxc3 {[%emt 0:00:43]} Qe7 {[%emt 0:00:05]} 7. d3 {[%emt 0:01:54] 7.d4 is setting a new trend.} d5 {[%emt 0:01:35] A28: English Opening: Four Knights Variation.} 8. cxd5 {[%emt 0:02:52]} Nxd5 {[%emt 0:00:06]} 9. Qc2 {[%emt 0:05:14]} (9. Qb3 $11 {remains equal.} Be6 10. a3 (10. Qxb7 Qb4+ 11. Qxb4 Ndxb4 $11)) 9... Bf5 {[%emt 0:05:11] [#]} (9... e4 $17 10. dxe4 Ndb4) 10. e4 $146 {[%emt 0:01:27]} ({Predecessor:} 10. a3 e4 11. dxe4 Bxe4 12. Bd3 Bxf3 13. gxf3 O-O-O 14. Kf1 Kb8 15. Be4 Rhe8 16. Bd2 {1-0 (44) Lerner,K (2524)-Cohen,O (2221) Givataim 2007}) 10... Ndb4 $1 {[%emt 0:00:28][%cal Bd5b4,Bb4a6,Ba6c5][%mdl 32]} 11. Qc3 {[%emt 0:04:35] a3 is the strong threat.} Bg4 {[%emt 0:01:08] Strongly threatening ...Bxf3.} 12. a3 {[%emt 0:01:32]} Na6 {[%emt 0:00:54]} 13. Be2 {[%emt 0:02:57][%cal Of3e5]} Bxf3 {[%emt 0:01:46]} 14. Bxf3 {[%emt 0:00:11]} Nd4 {[%emt 0:00:07]} 15. Bd1 {[%emt 0:01:20]} O-O {[%emt 0:03:00]} 16. O-O {[%emt 0:02:11]} Nc5 {[%emt 0:01:47]} 17. Kh1 {[%emt 0:00:59]} Rad8 {[%emt 0:02:09]} 18. Be3 {[%emt 0:01:25]} c6 {[%emt 0:02:21]} 19. g3 {[%emt 0:01:23]} Nce6 {[%emt 0:04:21]} 20. f4 {[%emt 0:03:05]} exf4 {[%emt 0:00:29]} 21. gxf4 {[%emt 0:00:16]} f5 {[%emt 0:00:10]} 22. b4 {[%emt 0:08:12]} (22. exf5 $11 {keeps the balance.} Rxf5 23. Bg4) 22... Kh8 {[%emt 0:01:36]} (22... fxe4 {keeps more tension.} 23. Bg4 exd3 24. Qxd3 Qh4) 23. Ra2 {[%emt 0:01:25] [#]} (23. Qe1 $15) 23... Qh4 {[%emt 0:00:59]} (23... fxe4 $1 $17 24. Rd2 exd3 25. Rxd3 c5 26. bxc5 Nb5) 24. Rg2 $11 {[%emt 0:16:32]} Rd7 {[%emt 0:06:06]} 25. Qc4 {[%emt 0:16:00]} Qh3 {[%emt 0:05:47]} 26. exf5 {[%emt 0:15:47]} Nxf5 {[%emt 0:02:41] Pair of Knights!} (26... Qxe3 27. Rg3 Qd2 28. fxe6 $16) 27. Bc5 {[%emt 0:02:21]} (27. Bf2 $1 $15) 27... Ne3 $2 {[%emt 0:18:00][%mdl 8192]} (27... Ng3+ 28. Rxg3 Qxf1+ 29. Rg1 Qxf4 30. Qxe6 $16) (27... Nxc5 $17 {and life is bright.} 28. Qxc5 Rdf7) 28. Bxe3 $18 {[%emt 0:00:29]} Qxe3 {[%emt 0:00:05]} 29. Bg4 {[%emt 0:03:43] Threatens to win with Rf3.} Rxf4 $2 {[%emt 0:11:07]} (29... Qxd3 {is a better defense.} 30. Bxe6 Qxc4 31. Bxc4 Rd4) 30. Rxf4 {[%emt 0:00:37]} Nxf4 {[%emt 0:00:04]} 31. Bxd7 {[%emt 0:00:14][%cal Oc4f7] White wants to mate with Qf7!} Nxg2 {[%emt 0:00:08][%mdl 4096] Endgame KQB-KQN} 32. Qf7 {[%emt 0:03:47][%cal Rf7f8][%mdl 64] [#] Against Qf3. Zwischenzug} ({Less strong is} 32. Kxg2 Qe2+ 33. Kg3 Qe1+ 34. Kf4 Qe2 $18) 32... Qe1+ {[%emt 0:00:23]} 33. Kxg2 {[%emt 0:00:05][%cal Rf7f8]} Qd2+ {[%emt 0:00:04]} 34. Qf2 {[%emt 0:01:21]} Qg5+ {[%emt 0:00:05]} 35. Qg3 {[%emt 0:01:26]} Qd2+ {[%emt 0:00:08]} 36. Qf2 $2 {[%emt 0:01:09]} (36. Kh3 $18 {[%cal Rg3b8]} Qh6+ 37. Kg4 Qg6+ 38. Kf4 Qf7+ 39. Ke3 (39. Bf5 g6 $11) 39... Qe7+ 40. Kd2) 36... Qg5+ $16 {[%emt 0:00:05]} 37. Kh3 {[%emt 0:01:13]} (37. Kf1 $16 {[%cal Rf2f8]} Qc1+ 38. Kg2 Qg5+) 37... Qh6+ $2 {[%emt 0:01:02][%mdl 8192]} ({Black should try} 37... Qh5+ $14 38. Kg2 Qg5+) 38. Kg3 $2 {[%emt 0:00:30]} (38. Qh4 $18 {and the rest is easy.}) 38... Qd6+ {[%emt 0:00:33][%mdl 8192]} (38... Qg6+ $16 {is more resistant.} 39. Kf3 (39. Kh4 Qh6+ 40. Kg4 Qg6+ 41. Kh3 Qxd3+ 42. Kg2 Qd5+ 43. Qf3 Qg5+ 44. Kf2 Qd2+ 45. Kg3 Qd6+ 46. Qf4 Qd3+ 47. Kg2 Qd5+ 48. Kf2 Qa2+ 49. Kf1 Qb1+ 50. Kg2 Qa2+ 51. Qf2 Qd5+ 52. Qf3 Qg5+ 53. Kf2 Qd2+ 54. Kf1 Qc1+ 55. Kg2 Qd2+ 56. Kg3 Qd6+ 57. Qf4 Qd3+ 58. Kg2 Qd5+ 59. Qf3 $18) 39... Qxd3+ 40. Kg2 Qd5+ 41. Qf3 Qg5+ 42. Kf2 Qd2+ 43. Kg3 Qd6+ 44. Qf4 Qd3+ 45. Kg2 Qd5+ 46. Qf3 Qg5+ 47. Kf2 Qd2+ 48. Kg3 Qd6+ 49. Qf4 Qd3+ 50. Kg2 Qd5+ 51. Kf2 Kg8) 39. Kg2 $18 {[%emt 0:00:50]} Qd5+ {[%emt 0:00:19]} 40. Qf3 {[%emt 0:00:27] White is clearly winning.} Qg5+ {[%emt 0:00:21]} 41. Bg4 {[%emt 0:02:56][%cal Rf3f8]} h5 {[%emt 0:00:00]} (41... Kg8 $142 42. h4 Qg6) 42. Qf8+ {[%emt 0:00:05]} Kh7 {[%emt 0:00:00]} 43. Qf5+ {[%emt 0:00:03] Weighted Error Value: White=0.73/Black=0.81} 1-0

[Event "Czech Championship 2022"]
[Site "Usti nad Labem"]
[Date "2022.05.22"]
[Round "9.1"]
[White "Stocek, Jiri"]
[Black "Navara, David"]
[Result "1/2-1/2"]
[ECO "E20"]
[WhiteElo "2533"]
[BlackElo "2682"]
[Annotator "TA"]
[PlyCount "57"]
[EventDate "2022.05.12"]
[EventType "swiss"]
[EventCountry "CZE"]
[SourceTitle "playchess.com"]
[Source "ChessBase"]
[SourceQuality "1"]
[TimeControl "40/5400+30:1800+30"]

{[%evp 13,57,-18,-13,-3,-5,-4,-7,-16,-12,-7,-11,0,0,0,0,-24,0,0,8,-72,-67,-68,-69,-73,-69,-89,-75,-101,-105,-86,0,0,0,0,0,0,0,0,0,0,0,0,0,0,0,0]} 1. d4 {[%emt 0:01:08]} Nf6 {[%emt 0:00:06]} 2. Nf3 {[%emt 0:00:21]} d5 {[%emt 0:00:28]} 3. c4 {[%emt 0:01:44]} e6 {[%emt 0:00:09]} 4. Nc3 {[%emt 0:00:18]} Bb4 {[%emt 0:00:07]} 5. g3 {[%emt 0:00:58]} dxc4 {[%emt 0:02:27]} 6. Bg2 {[%emt 0:00:53]} Nc6 {[%emt 0:03:21]} 7. O-O {[%emt 0:01:52]} O-O {[%emt 0:00:16]} 8. Qa4 {[%emt 0:01:27] E20: Nimzo-Indian: 4 g3 and 4 f3.} Nd5 {[%emt 0:06:01]} 9. Qc2 {[%emt 0:01:37]} Be7 {[%emt 0:01:34]} 10. Rd1 {[%emt 0:01:33]} Rb8 {[%emt 0:04:27]} 11. e4 {[%emt 0:13:35]} Ncb4 {[%emt 0:11:44]} 12. Qd2 {[%emt 0:02:21]} Nxc3 {[%emt 0:01:25]} 13. Qxc3 {[%emt 0:00:32]} b5 {[%emt 0:01:01]} 14. Ne1 {[%emt 0:19:49]} Bb7 {[%emt 0:07:50]} 15. Be3 {[%emt 0:01:18]} Qc8 {[%emt 0:15:42] [#]} 16. d5 $146 {[%emt 0:14:25]} (16. b3 $11 {keeps the balance.}) ({Predecessor:} 16. a3 Na6 17. a4 Bb4 18. Qc1 c6 19. Nc2 Be7 20. h4 Re8 21. h5 h6 22. Bh3 {½-½ (98) Narciso Dublan,M (2492)-Studer,N (2582) Barbera del Valles 2020}) 16... exd5 $17 {[%emt 0:01:37]} 17. a3 {[%emt 0:01:25]} Na6 {[%emt 0:07:41][%cal Bb4a6,Ba6c5,Bc5a4][%mdl 32]} 18. exd5 {[%emt 0:06:41]} Nc5 {[%emt 0:00:32]} 19. Bd4 {[%emt 0:00:59] Strongly threatening Qe3.} Re8 {[%emt 0:07:18]} 20. Bxg7 {[%emt 0:06:57] [#]} Na4 $1 {[%emt 0:00:21]} 21. Qd4 {[%emt 0:00:38] [#]} Bc5 {[%emt 0:00:13]} (21... Qf5 $1 $17 {Threatens to win with ...Bc5.} 22. Nf3 Nc5) 22. Qf4 $11 {[%emt 0:01:05] The position is equal.} Kxg7 {[%emt 0:00:23]} 23. Qg5+ {[%emt 0:00:05]} Kh8 {[%emt 0:01:27]} 24. Qf6+ {[%emt 0:00:10]} Kg8 {[%emt 0:00:05]} 25. Qg5+ {[%emt 0:00:24]} Kf8 {[%emt 0:03:28] White must now prevent ...Qd8.} 26. Qh6+ {[%emt 0:03:56]} Kg8 {[%emt 0:00:13]} 27. Qg5+ {[%emt 0:00:27]} Kh8 {[%emt 0:00:23]} 28. Qf6+ {[%emt 0:01:41]} Kg8 {[%emt 0:00:06]} 29. Qg5+ {Weighted Error Value: White=0.12 (very precise) /Black=0.07 (flawless)} 1/2-1/2

[Event "Czech Championship 2022"]
[Site "Usti nad Labem"]
[Date "2022.05.22"]
[Round "9.2"]
[White "Kraus, Tomas"]
[Black "Babula, Vlastimil"]
[Result "1/2-1/2"]
[ECO "B40"]
[WhiteElo "2472"]
[BlackElo "2576"]
[Annotator "TA"]
[PlyCount "76"]
[EventDate "2022.05.12"]
[EventType "swiss"]
[EventCountry "CZE"]
[SourceTitle "playchess.com"]
[Source "ChessBase"]
[SourceQuality "1"]
[TimeControl "40/5400+30:1800+30"]

{[%evp 9,76,13,27,0,0,0,0,0,0,-8,0,0,0,0,22,-25,0,-21,0,0,54,-16,0,0,0,0,0,-19,0,0,0,0,0,-16,-15,-32,-21,-30,-33,-43,-43,-119,-51,-54,-60,-56,-40,-64,-14,-170,-170,-182,0,-73,-61,-68,-61,-67,-66,-69,-63,-108,0,0,0,-102,0,0,0]} 1. e4 {[%emt 0:00:03]} c5 {[%emt 0:00:07]} 2. Nf3 {[%emt 0:00:13]} e6 {[%emt 0:00:17]} 3. c3 {[%emt 0:00:44]} d5 {[%emt 0:00:42]} 4. e5 {[%emt 0:06:29]} d4 {[%emt 0:00:55]} 5. Bd3 {[%emt 0:00:09]} Bd7 {[%emt 0:00:52]} 6. Be4 {[%emt 0:09:46] B40: Sicilian: 2...e6, Unusual lines.} Bc6 {[%emt 0:01:20]} 7. Qe2 {[%emt 0:00:11]} Bxe4 {[%emt 0:05:36]} 8. Qxe4 {[%emt 0:00:02]} Nc6 {[%emt 0:00:11]} 9. O-O {[%emt 0:04:59] [#]} Qd7 $146 {[%emt 0:07:32]} ({Predecessor:} 9... Nge7 10. c4 h6 11. d3 g5 12. h4 Bg7 13. h5 Nc8 14. b4 Nxb4 15. Ba3 Qc7 16. Bxb4 cxb4 {1-0 (68) Kamsky,G (2729)-Svidler,P (2727) Dresden 2008}) 10. Re1 {[%emt 0:11:00]} Nge7 {[%emt 0:14:26]} 11. Na3 {[%emt 0:05:50]} O-O-O {[%emt 0:05:31]} 12. b3 {[%emt 0:16:50]} (12. Rb1 {is superior.}) 12... h5 {[%emt 0:02:32]} 13. Bb2 {[%emt 0:03:03]} dxc3 {[%emt 0:12:07]} 14. dxc3 {[%emt 0:00:29]} Nf5 {[%emt 0:00:13]} (14... Ng6 $1 $11) 15. Qe2 {[%emt 0:08:10]} ({White should try} 15. Ng5 $14) 15... Be7 {[%emt 0:00:59]} 16. Rad1 {[%emt 0:00:36] Inhibits Qd3.} Qc7 {[%emt 0:00:14]} 17. Bc1 {[%emt 0:00:51]} Rxd1 {[%emt 0:00:56]} 18. Rxd1 {[%emt 0:00:35]} Rd8 {[%emt 0:00:23]} 19. Rxd8+ {[%emt 0:05:14]} Qxd8 {[%emt 0:00:59]} 20. Nc4 {[%emt 0:01:08]} g5 {[%emt 0:06:16][%cal Bg7g5,Bg5g4][%mdl 32]} 21. a4 {[%emt 0:01:56]} g4 {[%emt 0:00:57]} 22. Ne1 {[%emt 0:00:37]} (22. Nfd2 {is more complex.} Qd5 23. h3 Nh4 24. f4) 22... Na5 {[%emt 0:02:02]} 23. Nxa5 {[%emt 0:01:26]} Qxa5 {[%emt 0:01:26]} 24. Qc4 {[%emt 0:01:34]} a6 {[%emt 0:02:39][%cal Ba7a6,Ba6b5][%mdl 32]} 25. Nd3 {[%emt 0:04:30]} (25. h3 $15) 25... Kb8 {[%emt 0:12:02]} (25... b5 $17 26. Qe4 Kc7 27. axb5 axb5) 26. Bd2 {[%emt 0:02:37]} b5 {[%emt 0:00:48]} 27. axb5 {[%emt 0:03:09]} axb5 {[%emt 0:00:22]} 28. Qe4 {[%emt 0:05:01]} Qa2 {[%emt 0:06:25]} (28... Kc7 $15 29. Qe1 Qa2) 29. Be1 $2 {[%emt 0:01:07] [#]} (29. Qc6 $1 $11 {and White stays safe.}) 29... Qxb3 $19 {[%emt 0:00:46]} 30. Qc6 {[%emt 0:00:21]} c4 $2 {[%emt 0:08:41]} (30... Qb1 $19 31. Qb6+ Kc8 32. Qc6+ Kd8 33. Qa8+ Kd7) 31. Qb6+ {[%emt 0:03:37]} (31. Nb4 $11 {remains equal.} Bxb4 32. cxb4 (32. Qxb5+ Ka7 $11)) 31... Kc8 $17 {[%emt 0:00:05]} 32. Qc6+ {[%emt 0:01:37]} Kd8 {[%emt 0:00:20]} 33. Qa8+ {[%emt 0:00:51]} Kd7 {[%emt 0:00:18] [#] Hoping for ...Qb1.} 34. Qb7+ {[%emt 0:00:38]} Ke8 $1 {[%emt 0:00:51]} 35. Qb8+ {[%emt 0:00:39]} Kd7 {[%emt 0:03:47]} 36. Qb7+ {[%emt 0:00:46]} Ke8 {[%emt 0:00:08]} 37. Qb8+ $1 {[%emt 0:00:15]} ({Much weaker is} 37. Qc8+ Bd8 38. Qc6+ (38. Nc5 $2 Qd1 $19) 38... Kf8 $15) 37... Kd7 {[%emt 0:04:29]} ({Better is} 37... Bd8 $17 38. Nc5 Qd1) 38. Qb7+ $11 {[%emt 0:00:08]} Ke8 {[%emt 0:00:05] Weighted Error Value: White=0.24 (precise) /Black=0.26 (precise)} 1/2-1/2